fUST/lending_fUST_20251006
["ID","MTS","AMOUNT","RATE_DAILY","PERIOD"]
[389503333,1759686645735,-500.0,0.00016986,2]
[389503335,1759686645744,-500.0,0.00016986,2]
[389503337,1759686645753,-500.0,0.00016986,2]
[389503339,1759686645763,-591.05,0.00016986,2]
[389503341,1759686645773,-510.20991956,0.00016986,2]
[389503343,1759686645781,-500.0,0.00016986,2]
[389503345,1759686645795,-500.0,0.00016986,2]
[389503347,1759686645805,-708.66,0.00016986,2]
[389503348,1759686645814,-500.0,0.00016986,2]
[389503351,1759686645824,-500.0,0.00016986,2]
[389503353,1759686645833,-500.0,0.00016986,2]
[389503355,1759686645842,-500.0,0.00016986,2]
[389503357,1759686645852,-500.0,0.00016986,2]
[389503359,1759686645862,-500.0,0.00016986,2]
[389503361,1759686645871,-2202.62,0.00016986,2]
[389503363,1759686645880,-739.52,0.00016986,2]
[389503365,1759686645891,-500.0,0.00016986,2]
[389503367,1759686645901,-500.0,0.00016986,2]
[389503369,1759686645911,-500.0,0.00016986,2]
[389503371,1759686645920,-500.0,0.00016986,2]
[389503373,1759686645929,-500.0,0.00016986,2]
[389503375,1759686645938,-500.0,0.00016986,2]
[389503377,1759686645948,-501.98388083,0.00016986,2]
[389503379,1759686645957,-658.63,0.00016986,2]
[389503381,1759686645966,-1032.68,0.00016986,2]
[389503383,1759686645975,-500.0,0.00016986,2]
[389503385,1759686645984,-500.0,0.00016986,2]
[389503387,1759686645994,-500.0,0.00016986,2]
[389503389,1759686646002,-500.0,0.00016986,2]
[389503391,1759686646011,-500.0,0.00016986,2]
[389503393,1759686646020,-500.0,0.00016986,2]
[389503395,1759686646030,-500.0,0.00016986,2]
[389503397,1759686646039,-500.0,0.00016986,2]
[389503399,1759686646048,-1453.69,0.00016986,2]
[389503401,1759686646057,-500.0,0.00016986,2]
[389503403,1759686646066,-500.0,0.00016986,2]
[389503405,1759686646076,-500.0,0.00016986,2]
[389503407,1759686646085,-500.0,0.00016986,2]
[389503409,1759686646094,-500.0,0.00016986,2]
[389503411,1759686646103,-500.0,0.00016986,2]
[389503413,1759686646112,-2367.78,0.00016986,2]
[389503415,1759686646121,-500.0,0.00016986,2]
[389503417,1759686646130,-500.0,0.00016986,2]
[389503419,1759686646139,-594.44,0.00016986,2]
[389503421,1759686646149,-574.04,0.00016986,2]
[389503423,1759686646157,-500.0,0.00016986,2]
[389503425,1759686646167,-500.0,0.00016986,2]
[389503427,1759686646176,-500.0,0.00016986,2]
[389503429,1759686646185,-500.0,0.00016986,2]
[389503431,1759686646194,-731.63,0.00016986,2]
[389503433,1759686646203,-500.0,0.00016986,2]
[389503435,1759686646213,-500.0,0.00016986,2]
[389503437,1759686646222,-500.0,0.00016986,2]
[389503439,1759686646231,-500.0,0.00016986,2]
[389503441,1759686646240,-500.0,0.00016986,2]
[389503443,1759686646249,-583.41,0.00016986,2]
[389503445,1759686646259,-324.88460938,0.00016986,2]
[389503447,1759686646268,-500.0,0.00016986,2]
[389503449,1759686646277,-500.0,0.00016986,2]
[389503451,1759686646286,-500.0,0.00016986,2]
[389503453,1759686646295,-500.0,0.00016986,2]
[389503455,1759686646304,-500.0,0.00016986,2]
[389503457,1759686646313,-500.0,0.00016986,2]
[389503459,1759686646322,-1422.58,0.00016986,2]
[389503461,1759686646331,-507.62,0.00016986,2]
[389503463,1759686646340,-697.04,0.00016986,2]
[389503465,1759686646349,-1499.67,0.00016986,2]
[389503467,1759686646359,-829.14,0.00016986,2]
[389503470,1759686646368,-2664.17,0.00016986,2]
[389503472,1759686646377,-500.0,0.00016986,2]
[389503474,1759686646386,-573.32,0.00016986,2]
[389503476,1759686646395,-564.25,0.00016986,2]
[389503478,1759686646407,-500.0,0.00016986,2]
[389503479,1759686646415,-500.0,0.00016986,2]
[389503481,1759686646424,-500.0,0.00016986,2]
[389503483,1759686646433,-500.0,0.00016986,2]
[389503485,1759686646442,-974.41,0.00016986,2]
[389503487,1759686646451,-500.0,0.00016986,2]
[389503489,1759686646460,-500.0,0.00016986,2]
[389503492,1759686646469,-1216.98,0.00016986,2]
[389503493,1759686646478,-500.0,0.00016986,2]
[389503495,1759686646487,-500.0,0.00016986,2]
[389503497,1759686646496,-1047.25,0.00016986,2]
[389503500,1759686646506,-1062.17,0.00016986,2]
[389503502,1759686646515,-887.65,0.00016986,2]
[389503504,1759686646524,-1022.0,0.00016986,2]
[389503506,1759686646533,-500.0,0.00016986,2]
[389503508,1759686646543,-500.0,0.00016986,2]
[389503510,1759686646552,-500.0,0.00016986,2]
[389503512,1759686646561,-500.0,0.00016986,2]
[389503515,1759686646570,-500.0,0.00016986,2]
[389503517,1759686646580,-500.0,0.00016986,2]
[389503519,1759686646589,-500.0,0.00016986,2]
[389503521,1759686646602,-1367.35,0.00016986,2]
[389503523,1759686646614,-500.0,0.00016986,2]
[389503526,1759686646626,-500.0,0.00016986,2]
[389503528,1759686646638,-500.0,0.00016986,2]
[389503530,1759686646651,-500.0,0.00016986,2]
[389503533,1759686646661,-500.0,0.00016986,2]
[389503535,1759686646670,-500.0,0.00016986,2]
[389503537,1759686646684,-500.0,0.00016986,2]
[389503539,1759686646695,-604.26,0.00016986,2]
[389503542,1759686646707,-531.72,0.00016986,2]
[389503544,1759686646723,-500.0,0.00016986,2]
[389503546,1759686646734,-500.0,0.00016986,2]
[389503549,1759686646746,-607.47,0.00016986,2]
[389503551,1759686646757,-2121.69,0.00016986,2]
[389503553,1759686646768,-500.0,0.00016986,2]
[389503555,1759686646779,-500.0,0.00016986,2]
[389503558,1759686646791,-500.0,0.00016986,2]
[389503560,1759686646804,-488.54014687,0.00016986,2]
[389503563,1759686646816,-500.0,0.00016986,2]
[389503565,1759686646828,-500.0,0.00016986,2]
[389503567,1759686646839,-878.83,0.00016986,2]
[389503569,1759686646850,-1228.36,0.00016986,2]
[389503571,1759686646861,-500.0,0.00016986,2]
[389503574,1759686646872,-500.0,0.00016986,2]
[389503576,1759686646886,-950.12,0.00016986,2]
[389503578,1759686646899,-883.27,0.00016986,2]
[389503580,1759686646911,-600.36,0.00016986,2]
[389503582,1759686646922,-500.0,0.00016986,2]
[389503585,1759686646933,-566.27,0.00016986,2]
[389503587,1759686646942,-500.0,0.00016986,2]
[389503589,1759686646952,-916.33,0.00016986,2]
[389503591,1759686646961,-949.14,0.00016986,2]
[389503593,1759686646973,-500.0,0.00016986,2]
[389503595,1759686646983,-500.0,0.00016986,2]
[389503597,1759686646994,-500.0,0.00016986,2]
[389503600,1759686647006,-2096.25,0.00016986,2]
[389503602,1759686647017,-1940.36,0.00016986,2]
[389503604,1759686647029,-500.0,0.00016986,2]
[389503606,1759686647040,-500.0,0.00016986,2]
[389503609,1759686647051,-738.11,0.00016986,2]
[389503611,1759686647062,-500.0,0.00016986,2]
[389503613,1759686647074,-1771.88,0.00016986,2]
[389503616,1759686647085,-500.0,0.00016986,2]
[389503618,1759686647098,-5361.48,0.00016986,2]
[389503620,1759686647108,-481.08363986,0.00016986,2]
[389503622,1759686647118,-500.0,0.00016986,2]
[389503624,1759686647128,-500.0,0.00016986,2]
[389503626,1759686647137,-500.0,0.00016986,2]
[389503629,1759686647148,-1224.06,0.00016986,2]
[389503631,1759686647158,-6027.28,0.00016986,2]
[389503633,1759686647170,-541.58,0.00016986,2]
[389503636,1759686647182,-1255.74,0.00016986,2]
[389503638,1759686647194,-1500.85,0.00016986,2]
[389503640,1759686647205,-3063.63,0.00016986,2]
[389503642,1759686647214,-500.0,0.00016986,2]
[389503644,1759686647225,-500.0,0.00016986,2]
[389503646,1759686647236,-3193.95,0.00016986,2]
[389503648,1759686647246,-1951.36,0.00016986,2]
[389503651,1759686647257,-4840.94,0.00016986,2]
[389503653,1759686647269,-500.0,0.00016986,2]
[389503655,1759686647279,-699.03,0.00016986,2]
[389503657,1759686647289,-2082.56,0.00016986,2]
[389503659,1759686647299,-5933.49,0.00016986,2]
[389503661,1759686647309,-500.0,0.00016986,2]
[389503663,1759686647319,-500.0,0.00016986,2]
[389503665,1759686647331,-500.0,0.00016986,2]
[389503667,1759686647341,-500.0,0.00016986,2]
[389503670,1759686647352,-934.3,0.00016986,2]
[389503672,1759686647363,-1205.41,0.00016986,2]
[389503674,1759686647374,-500.0,0.00016986,2]
[389503676,1759686647384,-1224.19,0.00016986,2]
[389503678,1759686647396,-500.0,0.00016986,2]
[389503681,1759686647406,-706.17,0.00016986,2]
[389503683,1759686647416,-550.88,0.00016986,2]
[389503685,1759686647426,-673.79,0.00016986,2]
[389503687,1759686647436,-500.0,0.00016986,2]
[389503689,1759686647447,-563.88,0.00016986,2]
[389503691,1759686647457,-3288.46,0.00016986,2]
[389503694,1759686647467,-617.98,0.00016986,2]
[389503696,1759686647478,-633.43,0.00016986,2]
[389503698,1759686647487,-1992.18,0.00016986,2]
[389503700,1759686647498,-2281.66,0.00016986,2]
[389503702,1759686647508,-1275.24,0.00016986,2]
[389503704,1759686647518,-1024.44,0.00016986,2]
[389503706,1759686647527,-940.68,0.00016986,2]
[389503708,1759686647537,-1312.68,0.00016986,2]
[389503711,1759686647548,-3698.25,0.00016986,2]
[389503713,1759686647558,-500.0,0.00016986,2]
[389503715,1759686647568,-1272.42,0.00016986,2]
[389503717,1759686647579,-500.0,0.00016986,2]
[389503719,1759686647589,-510.29,0.00016986,2]
[389503721,1759686647600,-500.0,0.00016986,2]
[389503724,1759686647610,-1112.64,0.00016986,2]
[389503726,1759686647620,-4387.99,0.00016986,2]
[389503728,1759686647631,-867.19,0.00016986,2]
[389503730,1759686647640,-915.83,0.00016986,2]
[389503732,1759686647650,-3567.47,0.00016986,2]
[389503734,1759686647661,-1446.94,0.00016986,2]
[389503736,1759686647671,-940.25,0.00016986,2]
[389503738,1759686647681,-500.0,0.00016986,2]
[389503740,1759686647691,-494.75377499,0.00016986,2]
[389503742,1759686647701,-500.0,0.00016986,2]
[389503744,1759686647713,-678.19,0.00016986,2]
[389503746,1759686647726,-4869.36,0.00016986,2]
[389503749,1759686647736,-3707.51,0.00016986,2]
[389503751,1759686647746,-500.0,0.00016986,2]
[389503753,1759686647758,-500.0,0.00016986,2]
[389503755,1759686647767,-500.0,0.00016986,2]
[389503757,1759686647777,-7033.31,0.00016986,2]
[389503759,1759686647789,-849.15,0.00016986,2]
[389503762,1759686647802,-500.0,0.00016986,2]
[389503764,1759686647813,-500.0,0.00016986,2]
[389503766,1759686647823,-500.0,0.00016986,2]
[389503768,1759686647833,-1564.93,0.00016986,2]
[389503770,1759686647843,-773.77,0.00016986,2]
[389503772,1759686647853,-500.0,0.00016986,2]
[389503774,1759686647864,-1499.06,0.00016986,2]
[389503776,1759686647874,-2078.7,0.00016986,2]
[389503779,1759686647885,-598.09,0.00016986,2]
[389503781,1759686647895,-3818.74,0.00016986,2]
[389503783,1759686647906,-839.0,0.00016986,2]
[389503785,1759686647916,-500.0,0.00016986,2]
[389503787,1759686647927,-500.0,0.00016986,2]
[389503789,1759686647938,-308.26584894,0.00016986,2]
[389503791,1759686647950,-1602.68,0.00016986,2]
[389503794,1759686647961,-2846.29,0.00016986,2]
[389503796,1759686647971,-500.0,0.00016986,2]
[389503798,1759686647981,-1484.1,0.00016986,2]
[389503800,1759686647991,-500.0,0.00016986,2]
[389503802,1759686648002,-2371.6,0.00016986,2]
[389503804,1759686648012,-500.0,0.00016986,2]
[389503806,1759686648023,-793.33,0.00016986,2]
[389503809,1759686648034,-2090.51,0.00016986,2]
[389503811,1759686648044,-500.0,0.00016986,2]
[389503813,1759686648055,-500.0,0.00016986,2]
[389503815,1759686648065,-500.0,0.00016986,2]
[389503817,1759686648076,-504.64714111,0.00016986,2]
[389503819,1759686648087,-500.0,0.00016986,2]
[389503822,1759686648097,-583.26,0.00016986,2]
[389503824,1759686648107,-500.0,0.00016986,2]
[389503826,1759686648118,-1019.37,0.00016986,2]
[389503828,1759686648128,-500.0,0.00016986,2]
[389503830,1759686648138,-500.0,0.00016986,2]
[389503832,1759686648148,-1721.15,0.00016986,2]
[389503834,1759686648159,-500.0,0.00016986,2]
[389503836,1759686648168,-500.0,0.00016986,2]
[389503838,1759686648179,-3326.4,0.00016986,2]
[389503841,1759686648189,-500.0,0.00016986,2]
[389503843,1759686648199,-612.75,0.00016986,2]
[389503845,1759686648209,-500.0,0.00016986,2]
[389503847,1759686648219,-627.61,0.00016986,2]
[389503849,1759686648229,-500.0,0.00016986,2]
[389503851,1759686648240,-500.0,0.00016986,2]
[389503853,1759686648250,-878.6,0.00016986,2]
[389503855,1759686648260,-500.0,0.00016986,2]
[389503857,1759686648270,-348.0,0.00016989,2]
[389503860,1759686648280,-92020.99886271,0.0001699,2]
[389503862,1759686648290,-110027.93956836,0.00017,2]
[389503864,1759686648300,-448.20654743,0.00017256,2]
[389503866,1759686648311,-468.98320977,0.0001726,2]
[389503868,1759686648321,-500.0,0.0001726,2]
[389503870,1759686648331,-1384.52,0.0001726,2]
[389503872,1759686648341,-500.0,0.0001726,2]
[389503874,1759686648352,-500.0,0.0001726,2]
[389503877,1759686648362,-500.0,0.0001726,2]
[389503879,1759686648372,-855.1,0.0001726,2]
[389503881,1759686648382,-710.1,0.0001726,2]
[389503883,1759686648392,-633.67,0.0001726,2]
[389503885,1759686648402,-500.0,0.0001726,2]
[389503887,1759686648413,-500.0,0.0001726,2]
[389503889,1759686648422,-500.0,0.0001726,2]
[389503891,1759686648432,-500.0,0.0001726,2]
[389503893,1759686648443,-792.22,0.0001726,2]
[389503896,1759686648456,-500.0,0.0001726,2]
[389503898,1759686648466,-508.4,0.0001726,2]
[389503900,1759686648476,-880.98,0.0001726,2]
[389503902,1759686648486,-500.0,0.0001726,2]
[389503904,1759686648497,-500.0,0.0001726,2]
[389503906,1759686648507,-500.0,0.0001726,2]
[389503908,1759686648517,-500.0,0.0001726,2]
[389503910,1759686648526,-500.0,0.0001726,2]
[389503912,1759686648537,-591.05,0.0001726,2]
[389503914,1759686648547,-500.0,0.0001726,2]
[389503917,1759686648557,-500.0,0.0001726,2]
[389503919,1759686648567,-708.66,0.0001726,2]
[389503921,1759686648577,-500.0,0.0001726,2]
[389503923,1759686648587,-500.0,0.0001726,2]
[389503925,1759686648597,-500.0,0.0001726,2]
[389503927,1759686648606,-500.0,0.0001726,2]
[389503929,1759686648616,-2202.62,0.0001726,2]
[389503931,1759686648626,-739.52,0.0001726,2]
[389503933,1759686648636,-500.0,0.0001726,2]
[389503936,1759686648646,-500.0,0.0001726,2]
[389503938,1759686648656,-184.6634847,0.0001726,2]
[389503940,1759686648666,-500.0,0.0001726,2]
[389503942,1759686648676,-500.0,0.0001726,2]
[389503944,1759686648686,-500.0,0.0001726,2]
[389503946,1759686648696,-658.63,0.0001726,2]
[389503948,1759686648706,-1032.68,0.0001726,2]
[389503950,1759686648720,-500.0,0.0001726,2]
[389503952,1759686648729,-500.0,0.0001726,2]
[389503954,1759686648739,-500.0,0.0001726,2]
[389503956,1759686648749,-500.0,0.0001726,2]
[389503958,1759686648758,-500.0,0.0001726,2]
[389503960,1759686648769,-502.35218277,0.0001726,2]
[389503963,1759686648779,-500.0,0.0001726,2]
[389503965,1759686648789,-1453.69,0.0001726,2]
[389503967,1759686648798,-500.0,0.0001726,2]
[389503969,1759686648808,-500.0,0.0001726,2]
[389503971,1759686648818,-500.0,0.0001726,2]
[389503972,1759686648828,-500.0,0.0001726,2]
[389503973,1759686648838,-500.0,0.0001726,2]
[389503974,1759686648848,-2367.78,0.0001726,2]
[389503975,1759686648857,-500.0,0.0001726,2]
[389503976,1759686648867,-500.0,0.0001726,2]
[389503977,1759686648878,-594.44,0.0001726,2]
[389503978,1759686648888,-574.04,0.0001726,2]
[389503979,1759686648898,-500.0,0.0001726,2]
[389503980,1759686648908,-500.0,0.0001726,2]
[389503981,1759686648919,-500.0,0.0001726,2]
[389503982,1759686648929,-500.0,0.0001726,2]
[389503983,1759686648939,-731.63,0.0001726,2]
[389503984,1759686648949,-500.0,0.0001726,2]
[389503985,1759686648959,-500.0,0.0001726,2]
[389503986,1759686648969,-500.0,0.0001726,2]
[389504015,1759686649270,-500.0,0.0001726,2]
[389504018,1759686649286,-322.61712611,0.0001726,2]
[389504020,1759686649302,-583.41,0.0001726,2]
[389504024,1759686649322,-500.0,0.0001726,2]
[389504026,1759686649332,-500.0,0.0001726,2]
[389504028,1759686649342,-500.0,0.0001726,2]
[389504030,1759686649351,-500.0,0.0001726,2]
[389504031,1759686649360,-500.0,0.0001726,2]
[389504033,1759686649369,-500.0,0.0001726,2]
[389504035,1759686649378,-1422.58,0.0001726,2]
[389504037,1759686649387,-507.62,0.0001726,2]
[389504039,1759686649396,-697.04,0.0001726,2]
[389504041,1759686649405,-1499.67,0.0001726,2]
[389504043,1759686649414,-829.14,0.0001726,2]
[389504045,1759686649424,-2664.17,0.0001726,2]
[389504047,1759686649433,-500.0,0.0001726,2]
[389504049,1759686649442,-500.0,0.0001726,2]
[389504051,1759686649451,-573.32,0.0001726,2]
[389504053,1759686649460,-564.25,0.0001726,2]
[389504056,1759686649470,-500.0,0.0001726,2]
[389504058,1759686649479,-500.0,0.0001726,2]
[389504059,1759686649488,-500.0,0.0001726,2]
[389504061,1759686649497,-500.0,0.0001726,2]
[389504063,1759686649506,-974.41,0.0001726,2]
[389504065,1759686649515,-500.0,0.0001726,2]
[389504067,1759686649525,-500.0,0.0001726,2]
[389504069,1759686649534,-1216.98,0.0001726,2]
[389504071,1759686649543,-500.0,0.0001726,2]
[389504073,1759686649552,-500.0,0.0001726,2]
[389504075,1759686649561,-1047.25,0.0001726,2]
[389504077,1759686649571,-1062.17,0.0001726,2]
[389504079,1759686649580,-887.65,0.0001726,2]
[389504081,1759686649589,-1022.0,0.0001726,2]
[389504083,1759686649599,-500.0,0.0001726,2]
[389504085,1759686649608,-500.0,0.0001726,2]
[389504087,1759686649617,-500.0,0.0001726,2]
[389504089,1759686649626,-500.0,0.0001726,2]
[389504091,1759686649635,-391.74709679,0.0001726,2]
[389504093,1759686649645,-202.003537,0.0001726,2]
[389504095,1759686649654,-500.0,0.0001726,2]
[389504097,1759686649662,-1367.35,0.0001726,2]
[389504099,1759686649672,-500.0,0.0001726,2]
[389504101,1759686649681,-500.0,0.0001726,2]
[389504103,1759686649690,-500.0,0.0001726,2]
[389504105,1759686649700,-500.0,0.0001726,2]
[389504107,1759686649710,-500.0,0.0001726,2]
[389504109,1759686649723,-500.0,0.0001726,2]
[389504111,1759686649732,-500.0,0.0001726,2]
[389504113,1759686649741,-604.26,0.0001726,2]
[389504115,1759686649751,-531.72,0.0001726,2]
[389504117,1759686649762,-500.0,0.0001726,2]
[389504119,1759686649771,-500.0,0.0001726,2]
[389504121,1759686649780,-607.47,0.0001726,2]
[389504123,1759686649792,-2121.69,0.0001726,2]
[389504125,1759686649801,-367.52768597,0.0001726,2]
[389504127,1759686649810,-500.0,0.0001726,2]
[389504129,1759686649819,-500.0,0.0001726,2]
[389504132,1759686649830,-500.0,0.0001726,2]
[389504133,1759686649840,-500.0,0.0001726,2]
[389504135,1759686649849,-159.369487,0.0001726,2]
[389504137,1759686649858,-878.83,0.0001726,2]
[389504139,1759686649867,-1228.36,0.0001726,2]
[389504141,1759686649876,-500.0,0.0001726,2]
[389504143,1759686649885,-500.0,0.0001726,2]
[389504145,1759686649894,-950.12,0.0001726,2]
[389504147,1759686649903,-883.27,0.0001726,2]
[389504149,1759686649912,-151.0,0.0001726,2]
[389504151,1759686649922,-600.36,0.0001726,2]
[389504153,1759686649931,-500.0,0.0001726,2]
[389504155,1759686649941,-566.27,0.0001726,2]
[389504158,1759686649951,-151.0,0.0001726,2]
[389504160,1759686649961,-916.33,0.0001726,2]
[389504162,1759686649969,-949.14,0.0001726,2]
[389504164,1759686649978,-500.0,0.0001726,2]
[389504166,1759686649987,-500.0,0.0001726,2]
[389504167,1759686649996,-373.39128123,0.0001726,2]
[389504169,1759686650005,-2096.25,0.0001726,2]
[389504171,1759686650014,-1940.36,0.0001726,2]
[389504173,1759686650023,-151.0,0.0001726,2]
[389504175,1759686650033,-151.0,0.0001726,2]
[389504177,1759686650041,-166.97320362,0.0001726,2]
[389504179,1759686650050,-500.0,0.0001726,2]
[389504181,1759686650060,-738.11,0.0001726,2]
[389504183,1759686650069,-158.554178,0.0001726,2]
[389504185,1759686650078,-500.0,0.0001726,2]
[389504187,1759686650087,-1771.88,0.0001726,2]
[389504189,1759686650096,-500.0,0.0001726,2]
[389504191,1759686650105,-5361.48,0.0001726,2]
[389504193,1759686650114,-500.0,0.0001726,2]
[389504195,1759686650123,-500.0,0.0001726,2]
[389504197,1759686650132,-500.0,0.0001726,2]
[389504199,1759686650142,-1224.06,0.0001726,2]
[389504201,1759686650151,-6027.28,0.0001726,2]
[389504203,1759686650161,-541.58,0.0001726,2]
[389504205,1759686650170,-1255.74,0.0001726,2]
[389504207,1759686650180,-1500.85,0.0001726,2]
[389504209,1759686650189,-3063.63,0.0001726,2]
[389504211,1759686650198,-500.0,0.0001726,2]
[389504213,1759686650208,-500.0,0.0001726,2]
[389504216,1759686650218,-3193.95,0.0001726,2]
[389504218,1759686650227,-1951.36,0.0001726,2]
[389504220,1759686650236,-4840.94,0.0001726,2]
[389504221,1759686650245,-500.0,0.0001726,2]
[389504223,1759686650254,-699.03,0.0001726,2]
[389504225,1759686650263,-2082.56,0.0001726,2]
[389504228,1759686650273,-5933.49,0.0001726,2]
[389504230,1759686650282,-500.0,0.0001726,2]
[389504231,1759686650291,-500.0,0.0001726,2]
[389504234,1759686650300,-151.0,0.0001726,2]
[389504236,1759686650310,-151.0,0.0001726,2]
[389504237,1759686650319,-500.0,0.0001726,2]
[389504240,1759686650329,-500.0,0.0001726,2]
[389504241,1759686650339,-934.3,0.0001726,2]
[389504243,1759686650348,-1205.41,0.0001726,2]
[389504245,1759686650357,-434.27801408,0.0001726,2]
[389504247,1759686650366,-1224.19,0.0001726,2]
[389504249,1759686650375,-500.0,0.0001726,2]
[389504251,1759686650385,-706.17,0.0001726,2]
[389504254,1759686650395,-673.79,0.0001726,2]
[389504256,1759686650406,-484.64798756,0.0001726,2]
[389504258,1759686650415,-563.88,0.0001726,2]
[389504259,1759686650424,-3288.46,0.0001726,2]
[389504261,1759686650434,-617.98,0.0001726,2]
[389504263,1759686650443,-633.43,0.0001726,2]
[389504265,1759686650453,-1992.18,0.0001726,2]
[389504267,1759686650462,-2281.66,0.0001726,2]
[389504269,1759686650471,-1275.24,0.0001726,2]
[389504271,1759686650479,-1024.44,0.0001726,2]
[389504273,1759686650489,-940.68,0.0001726,2]
[389504275,1759686650498,-1312.68,0.0001726,2]
[389504277,1759686650507,-3698.25,0.0001726,2]
[389504279,1759686650516,-500.0,0.0001726,2]
[389504281,1759686650525,-3364.798426,0.0001726,2]
[389504283,1759686650534,-1272.42,0.0001726,2]
[389504285,1759686650543,-3364.798426,0.0001726,2]
[389504287,1759686650553,-499.82236058,0.0001726,2]
[389504289,1759686650563,-510.29,0.0001726,2]
[389504291,1759686650572,-3364.798426,0.0001726,2]
[389504293,1759686650581,-1112.64,0.0001726,2]
[389504295,1759686650590,-3364.798426,0.0001726,2]
[389504297,1759686650599,-4387.99,0.0001726,2]
[389504299,1759686650608,-867.19,0.0001726,2]
[389504301,1759686650617,-915.83,0.0001726,2]
[389504303,1759686650627,-3567.47,0.0001726,2]
[389504305,1759686650637,-940.25,0.0001726,2]
[389504307,1759686650646,-500.0,0.0001726,2]
[389504309,1759686650655,-500.0,0.0001726,2]
[389504311,1759686650664,-678.19,0.0001726,2]
[389504313,1759686650673,-4869.36,0.0001726,2]
[389504315,1759686650682,-3707.51,0.0001726,2]
[389504317,1759686650691,-246.54558226,0.0001726,2]
[389504319,1759686650701,-500.0,0.0001726,2]
[389504321,1759686650710,-7033.31,0.0001726,2]
[389504323,1759686650722,-849.15,0.0001726,2]
[389504325,1759686650731,-500.0,0.0001726,2]
[389504327,1759686650740,-500.0,0.0001726,2]
[389504329,1759686650749,-1564.93,0.0001726,2]
[389504331,1759686650758,-773.77,0.0001726,2]
[389504333,1759686650767,-174.36511048,0.0001726,2]
[389504335,1759686650777,-1499.06,0.0001726,2]
[389504337,1759686650786,-2078.7,0.0001726,2]
[389504339,1759686650795,-598.09,0.0001726,2]
[389504341,1759686650804,-3818.74,0.0001726,2]
[389504343,1759686650812,-839.0,0.0001726,2]
[389504345,1759686650821,-500.0,0.0001726,2]
[389504347,1759686650830,-405.12863237,0.0001726,2]
[389504349,1759686650839,-1602.68,0.0001726,2]
[389504351,1759686650848,-2846.29,0.0001726,2]
[389504353,1759686650858,-500.0,0.0001726,2]
[389504355,1759686650867,-1484.1,0.0001726,2]
[389504357,1759686650876,-500.0,0.0001726,2]
[389504359,1759686650886,-2371.6,0.0001726,2]
[389504361,1759686650895,-500.0,0.0001726,2]
[389504363,1759686650905,-793.33,0.0001726,2]
[389504365,1759686650914,-2090.51,0.0001726,2]
[389504367,1759686650924,-500.0,0.0001726,2]
[389504369,1759686650933,-500.0,0.0001726,2]
[389504371,1759686650941,-500.0,0.0001726,2]
[389504373,1759686650951,-500.0,0.0001726,2]
[389504375,1759686650961,-583.26,0.0001726,2]
[389504377,1759686650970,-500.0,0.0001726,2]
[389504379,1759686650981,-1019.37,0.0001726,2]